[Event "*** Titled Tuesday Blitz"]
[Site "Chess.com"]
[Date "2020.11.03"]
[Round "5"]
[White "Roza_Idrisova"]
[Black "TokChess"]
[Result "0-1"]
[WhiteElo "2198"]
[BlackElo "2470"]
[TimeControl "180+1"]
[EndTime "10:59:57 PST"]
[Termination "TokChess won on time"]

1. d4 {[%clk 0:03:00.9]} 1... d5 {[%clk 0:02:59.3]} 2. Nf3 {[%clk 0:03:00.2]}
2... Nf6 {[%clk 0:02:59.1]} 3. Bg5 {[%clk 0:03:00]} 3... Nbd7 {[%clk 0:02:56.7]}
4. Nbd2 {[%clk 0:02:59.8]} 4... e6 {[%clk 0:02:54.5]} 5. e4 {[%clk 0:02:58.1]}
5... dxe4 {[%clk 0:02:52.9]} 6. Nxe4 {[%clk 0:02:57.7]} 6... Be7 {[%clk
0:02:53.1]} 7. Ng3 {[%clk 0:02:57.3]} 7... h6 {[%clk 0:02:52.4]} 8. Bf4 {[%clk
0:02:56.1]} 8... b6 {[%clk 0:02:50.9]} 9. Bb5 {[%clk 0:02:54.9]} 9... Bb7 {[%clk
0:02:48.2]} 10. Ne5 {[%clk 0:02:52.6]} 10... O-O {[%clk 0:02:28.3]} 11. O-O
{[%clk 0:02:48.8]} 11... Nxe5 {[%clk 0:02:16.4]} 12. dxe5 {[%clk 0:02:48.4]}
12... Nd5 {[%clk 0:02:14.5]} 13. Bd2 {[%clk 0:02:43.4]} 13... a6 {[%clk
0:02:13.5]} 14. Bd3 {[%clk 0:02:39.9]} 14... Nb4 {[%clk 0:02:10.6]} 15. Be4
{[%clk 0:02:25.1]} 15... Bxe4 {[%clk 0:01:59.9]} 16. Nxe4 {[%clk 0:02:24.5]}
16... Qd5 {[%clk 0:02:00.7]} 17. Qg4 {[%clk 0:01:43.8]} 17... h5 {[%clk
0:01:41.2]} 18. Qf4 {[%clk 0:01:35.7]} 18... Nxc2 {[%clk 0:01:22.1]} 19. Rad1
{[%clk 0:01:32.3]} 19... Rfd8 {[%clk 0:01:03]} 20. Nf6+ {[%clk 0:01:19.4]} 20...
Bxf6 {[%clk 0:00:51.1]} 21. exf6 {[%clk 0:01:19.2]} 21... g5 {[%clk 0:00:37.2]}
22. Qxg5+ {[%clk 0:01:14.6]} 22... Qxg5 {[%clk 0:00:36.6]} 23. Bxg5 {[%clk
0:01:14.5]} 23... Nd4 {[%clk 0:00:34.6]} 24. f3 {[%clk 0:01:02.6]} 24... Kh7
{[%clk 0:00:31.9]} 25. Kf2 {[%clk 0:01:02.1]} 25... Kg6 {[%clk 0:00:31.9]} 26.
h4 {[%clk 0:01:02.1]} 26... c5 {[%clk 0:00:31.3]} 27. g4 {[%clk 0:00:56.1]}
27... hxg4 {[%clk 0:00:20.9]} 28. fxg4 {[%clk 0:00:55.8]} 28... Rd5 {[%clk
0:00:21.8]} 29. Kg2 {[%clk 0:00:43.3]} 29... Rad8 {[%clk 0:00:21.4]} 30. Be3
{[%clk 0:00:38.1]} 30... Nc2 {[%clk 0:00:20.1]} 31. Rde1 {[%clk 0:00:29.8]}
31... Nxe3+ {[%clk 0:00:15.3]} 32. Rxe3 {[%clk 0:00:29.3]} 32... Rd2+ {[%clk
0:00:15.9]} 33. Rf2 {[%clk 0:00:23]} 33... Rxf2+ {[%clk 0:00:15.2]} 34. Kxf2
{[%clk 0:00:22.7]} 34... Kxf6 {[%clk 0:00:15.1]} 35. Rf3+ {[%clk 0:00:19.7]}
35... Kg6 {[%clk 0:00:15.5]} 36. Ke2 {[%clk 0:00:20.2]} 36... Rd4 {[%clk
0:00:15.1]} 37. Rg3 {[%clk 0:00:18.5]} 37... f6 {[%clk 0:00:14.5]} 38. Ke3
{[%clk 0:00:18.8]} 38... e5 {[%clk 0:00:14.8]} 39. Rg2 {[%clk 0:00:15.9]} 39...
a5 {[%clk 0:00:14.9]} 40. a3 {[%clk 0:00:15.5]} 40... a4 {[%clk 0:00:14.6]} 41.
Ke2 {[%clk 0:00:15.3]} 41... b5 {[%clk 0:00:15.1]} 42. Ke3 {[%clk 0:00:15.3]}
42... Kh6 {[%clk 0:00:15.4]} 43. Kf3 {[%clk 0:00:15.1]} 43... b4 {[%clk
0:00:15.6]} 44. axb4 {[%clk 0:00:14.6]} 44... Rxb4 {[%clk 0:00:16.1]} 45. Kg3
{[%clk 0:00:13.9]} 45... Rb3+ {[%clk 0:00:15.4]} 46. Kh2 {[%clk 0:00:13.4]}
46... Kg6 {[%clk 0:00:15.9]} 47. Rf2 {[%clk 0:00:12.4]} 47... c4 {[%clk
0:00:14.8]} 48. Kg2 {[%clk 0:00:12.4]} 48... a3 {[%clk 0:00:14.8]} 49. bxa3
{[%clk 0:00:12.2]} 49... Rxa3 {[%clk 0:00:15.7]} 50. Rc2 {[%clk 0:00:12.2]}
50... c3 {[%clk 0:00:15.5]} 51. Kf3 {[%clk 0:00:12]} 51... Rb3 {[%clk
0:00:15.7]} 52. Ke4 {[%clk 0:00:11.6]} 52... Rb4+ {[%clk 0:00:15.6]} 53. Kf3
{[%clk 0:00:11.1]} 53... Rf4+ {[%clk 0:00:15.5]} 54. Kg3 {[%clk 0:00:11.2]}
54... Rc4 {[%clk 0:00:16.4]} 55. Kf3 {[%clk 0:00:11.2]} 55... Kf7 {[%clk
0:00:16.7]} 56. Kg3 {[%clk 0:00:10.8]} 56... Ke6 {[%clk 0:00:17.2]} 57. Kf3
{[%clk 0:00:11.1]} 57... Kd5 {[%clk 0:00:16.9]} 58. h5 {[%clk 0:00:09.2]} 58...
Kd4 {[%clk 0:00:17]} 59. h6 {[%clk 0:00:08.8]} 59... Rc7 {[%clk 0:00:17.1]} 60.
g5 {[%clk 0:00:05.4]} 60... fxg5 {[%clk 0:00:16.8]} 61. Kg4 {[%clk 0:00:05.5]}
61... Kd3 {[%clk 0:00:16.7]} 62. Rc1 {[%clk 0:00:03.8]} 62... c2 {[%clk
0:00:17.1]} 63. Kxg5 {[%clk 0:00:03.1]} 63... e4 {[%clk 0:00:17.5]} 0-1

[Event "*** Titled Tuesday Blitz"]
[Site "Chess.com"]
[Date "2020.11.03"]
[Round "5"]
[White "RobertoJBM"]
[Black "shnitez"]
[Result "1-0"]
[WhiteElo "2797"]
[BlackElo "2529"]
[TimeControl "180+1"]
[EndTime "11:00:00 PST"]
[Termination "RobertoJBM won by resignation"]

1. d4 {[%clk 0:03:00.9]} 1... Nf6 {[%clk 0:02:59]} 2. c4 {[%clk 0:03:00.8]} 2...
e6 {[%clk 0:02:59.1]} 3. Nc3 {[%clk 0:03:00.7]} 3... Bb4 {[%clk 0:02:58.6]} 4.
Qc2 {[%clk 0:03:00.6]} 4... b6 {[%clk 0:02:58.2]} 5. a3 {[%clk 0:03:00.6]} 5...
Bxc3+ {[%clk 0:02:57.2]} 6. Qxc3 {[%clk 0:03:01.5]} 6... Bb7 {[%clk 0:02:56.9]}
7. Bg5 {[%clk 0:03:01.4]} 7... h6 {[%clk 0:02:56.2]} 8. Bh4 {[%clk 0:03:01.4]}
8... g5 {[%clk 0:02:56.2]} 9. Bg3 {[%clk 0:03:01.1]} 9... Ne4 {[%clk 0:02:56.8]}
10. Qc2 {[%clk 0:03:00.5]} 10... h5 {[%clk 0:02:54.2]} 11. f3 {[%clk 0:03:00.2]}
11... Nxg3 {[%clk 0:02:52.4]} 12. hxg3 {[%clk 0:03:01.1]} 12... Qf6 {[%clk
0:02:51.2]} 13. e3 {[%clk 0:02:59.9]} 13... c5 {[%clk 0:02:45.7]} 14. O-O-O
{[%clk 0:02:50.3]} 14... cxd4 {[%clk 0:02:31.7]} 15. exd4 {[%clk 0:02:50.3]}
15... Nc6 {[%clk 0:02:28.5]} 16. d5 {[%clk 0:02:44.2]} 16... Ne7 {[%clk
0:01:50.7]} 17. Kb1 {[%clk 0:02:37.1]} 17... Nf5 {[%clk 0:01:36.6]} 18. Qf2
{[%clk 0:02:30.8]} 18... O-O-O {[%clk 0:01:19.9]} 19. Ne2 {[%clk 0:02:22.3]}
19... h4 {[%clk 0:01:07.5]} 20. g4 {[%clk 0:02:15.3]} 20... Ne7 {[%clk
0:01:02.8]} 21. Nc3 {[%clk 0:02:10]} 21... Kb8 {[%clk 0:00:58.7]} 22. d6 {[%clk
0:02:01.8]} 22... Nc6 {[%clk 0:00:52.5]} 23. c5 {[%clk 0:01:59.4]} 23... bxc5
{[%clk 0:00:47]} 24. Qxc5 {[%clk 0:02:00.3]} 24... Qe5 {[%clk 0:00:42]} 25. Ne4
{[%clk 0:01:48.4]} 25... Qxc5 {[%clk 0:00:38.6]} 26. Nxc5 {[%clk 0:01:48.4]}
26... Ne5 {[%clk 0:00:35.2]} 27. Bb5 {[%clk 0:01:37.1]} 27... Bc6 {[%clk
0:00:26.4]} 28. Bxc6 {[%clk 0:01:31]} 28... Nxc6 {[%clk 0:00:27.3]} 29. Ne4
{[%clk 0:01:28]} 29... Rhg8 {[%clk 0:00:21.3]} 30. g3 {[%clk 0:01:17.6]} 30...
f5 {[%clk 0:00:18]} 31. gxf5 {[%clk 0:00:32.8]} 31... exf5 {[%clk 0:00:18.9]}
32. Nf6 {[%clk 0:00:33.4]} 32... hxg3 {[%clk 0:00:14.9]} 33. Nxg8 {[%clk
0:00:31.8]} 33... Rxg8 {[%clk 0:00:15.8]} 34. Kc2 {[%clk 0:00:29.2]} 34... f4
{[%clk 0:00:13.7]} 35. Kd2 {[%clk 0:00:28.6]} 35... Re8 {[%clk 0:00:11.6]} 36.
Rde1 {[%clk 0:00:28]} 36... Rxe1 {[%clk 0:00:07.4]} 37. Kxe1 {[%clk 0:00:28.2]}
37... Nd4 {[%clk 0:00:06.7]} 38. Kf1 {[%clk 0:00:27.8]} 38... Nxf3 {[%clk
0:00:06.4]} 39. Rh7 {[%clk 0:00:25.9]} 39... Ne5 {[%clk 0:00:05.3]} 40. Re7
{[%clk 0:00:24.2]} 40... Ng4 {[%clk 0:00:04.6]} 41. Kg2 {[%clk 0:00:22.5]} 41...
Kb7 {[%clk 0:00:03.9]} 42. Rxd7+ {[%clk 0:00:20.9]} 42... Kc6 {[%clk 0:00:04]}
43. Rg7 {[%clk 0:00:21.8]} 43... Kxd6 {[%clk 0:00:03.6]} 44. Rxg5 {[%clk
0:00:21.2]} 44... Ne3+ {[%clk 0:00:04]} 45. Kf3 {[%clk 0:00:21.1]} 45... Nd1
{[%clk 0:00:02.4]} 46. b4 {[%clk 0:00:19.8]} 46... Nc3 {[%clk 0:00:02.3]} 47.
Kxf4 {[%clk 0:00:16.2]} 47... Nb1 {[%clk 0:00:02.3]} 48. Rxg3 {[%clk 0:00:15.7]}
48... Kc6 {[%clk 0:00:02.6]} 49. Rb3 {[%clk 0:00:14.7]} 49... Nd2 {[%clk
0:00:02.7]} 50. Rd3 {[%clk 0:00:12.1]} 50... Nc4 {[%clk 0:00:02.6]} 51. Ke4
{[%clk 0:00:12.5]} 51... Kb5 {[%clk 0:00:03]} 52. Kd4 {[%clk 0:00:12.8]} 52...
Nb6 {[%clk 0:00:03]} 53. Kc3 {[%clk 0:00:12.3]} 53... Na4+ {[%clk 0:00:02.2]}
54. Kb3 {[%clk 0:00:12.2]} 54... Nb6 {[%clk 0:00:03.1]} 55. Rd4 {[%clk
0:00:12.1]} 55... a5 {[%clk 0:00:02.6]} 56. a4+ {[%clk 0:00:07]} 56... Nxa4
{[%clk 0:00:02.5]} 57. Rd5+ {[%clk 0:00:06.7]} 57... Kc6 {[%clk 0:00:02.5]} 58.
Rxa5 {[%clk 0:00:06.7]} 58... Nb6 {[%clk 0:00:02.9]} 59. Rc5+ {[%clk 0:00:07.3]}
59... Kb7 {[%clk 0:00:03]} 60. Rh5 {[%clk 0:00:08.2]} 60... Nd7 {[%clk
0:00:03.6]} 61. b5 {[%clk 0:00:08.5]} 61... Kb6 {[%clk 0:00:03.5]} 62. Kb4
{[%clk 0:00:09]} 62... Nb8 {[%clk 0:00:03.5]} 63. Rh6+ {[%clk 0:00:09.5]} 63...
Kb7 {[%clk 0:00:04.4]} 64. Rh7+ {[%clk 0:00:09]} 64... Kb6 {[%clk 0:00:04.1]}
65. Re7 {[%clk 0:00:09.4]} 65... Na6+ {[%clk 0:00:02.4]} 66. bxa6 {[%clk
0:00:09.1]} 1-0

[Event "*** Titled Tuesday Blitz"]
[Site "Chess.com"]
[Date "2020.11.03"]
[Round "5"]
[White "dopolian"]
[Black "Deepweb2020"]
[Result "0-1"]
[WhiteElo "2352"]
[BlackElo "2255"]
[TimeControl "180+1"]
[EndTime "11:00:00 PST"]
[Termination "Deepweb2020 won by resignation"]

1. c4 {[%clk 0:03:00.9]} 1... Nf6 {[%clk 0:02:59.1]} 2. b3 {[%clk 0:03:00.7]}
2... e6 {[%clk 0:02:55.7]} 3. Bb2 {[%clk 0:03:00.8]} 3... b6 {[%clk 0:02:55.1]}
4. Nf3 {[%clk 0:02:58.8]} 4... Bb7 {[%clk 0:02:53.4]} 5. d4 {[%clk 0:02:51]}
5... Bb4+ {[%clk 0:02:43.4]} 6. Nbd2 {[%clk 0:02:48.2]} 6... O-O {[%clk
0:02:29.8]} 7. a3 {[%clk 0:02:44.5]} 7... Be7 {[%clk 0:02:29.1]} 8. Qc2 {[%clk
0:02:41.5]} 8... c5 {[%clk 0:02:27]} 9. e3 {[%clk 0:02:33.2]} 9... d5 {[%clk
0:02:17.5]} 10. Bd3 {[%clk 0:02:26.6]} 10... Nc6 {[%clk 0:02:09.8]} 11. O-O
{[%clk 0:02:23.1]} 11... cxd4 {[%clk 0:02:07]} 12. Nxd4 {[%clk 0:02:18.2]} 12...
Rc8 {[%clk 0:01:47.6]} 13. Nxc6 {[%clk 0:02:09.3]} 13... Bxc6 {[%clk 0:01:45.1]}
14. Rad1 {[%clk 0:02:03]} 14... dxc4 {[%clk 0:01:41]} 15. Nxc4 {[%clk
0:01:58.8]} 15... Qe8 {[%clk 0:01:27.7]} 16. Qb1 {[%clk 0:01:43.8]} 16... h6
{[%clk 0:01:23.3]} 17. Be5 {[%clk 0:01:21.8]} 17... Rd8 {[%clk 0:01:10.9]} 18.
Bc2 {[%clk 0:01:13.1]} 18... Rxd1 {[%clk 0:01:08.6]} 19. Rxd1 {[%clk 0:01:14]}
19... Qa8 {[%clk 0:01:08.7]} 20. f3 {[%clk 0:01:09.1]} 20... Rd8 {[%clk
0:01:06.2]} 21. e4 {[%clk 0:01:05]} 21... Qb7 {[%clk 0:00:47.7]} 22. Rxd8+
{[%clk 0:00:59.8]} 22... Bxd8 {[%clk 0:00:46.7]} 23. Qd1 {[%clk 0:00:54.4]}
23... Be7 {[%clk 0:00:46.8]} 24. b4 {[%clk 0:00:47.5]} 24... a5 {[%clk
0:00:37.6]} 25. Bd6 {[%clk 0:00:40.5]} 25... Bd8 {[%clk 0:00:21.7]} 26. Ne5
{[%clk 0:00:26.5]} 26... Be8 {[%clk 0:00:19.6]} 27. Ba4 {[%clk 0:00:22.3]} 27...
Bxa4 {[%clk 0:00:16.8]} 28. Qxa4 {[%clk 0:00:23.2]} 28... b5 {[%clk 0:00:16.6]}
29. Qc2 {[%clk 0:00:22.2]} 29... axb4 {[%clk 0:00:13.6]} 30. axb4 {[%clk
0:00:21.6]} 30... Nd7 {[%clk 0:00:13.2]} 31. Nxd7 {[%clk 0:00:14.3]} 31... Qxd7
{[%clk 0:00:13.6]} 32. Qc5 {[%clk 0:00:13]} 32... Qb7 {[%clk 0:00:10.7]} 33. Qd4
{[%clk 0:00:10.3]} 33... f6 {[%clk 0:00:08.7]} 34. Bc5 {[%clk 0:00:09.5]} 34...
Qc7 {[%clk 0:00:06.8]} 35. g3 {[%clk 0:00:06.3]} 35... Kf7 {[%clk 0:00:07.1]}
36. Kg2 {[%clk 0:00:06.2]} 36... Be7 {[%clk 0:00:05]} 37. Qc3 {[%clk 0:00:05.5]}
37... Qd7 {[%clk 0:00:04.7]} 38. Bxe7 {[%clk 0:00:04.7]} 38... Kxe7 {[%clk
0:00:05.4]} 39. Qc5+ {[%clk 0:00:04.7]} 39... Kf7 {[%clk 0:00:05.2]} 40. Qb6
{[%clk 0:00:01.7]} 40... Qd2+ {[%clk 0:00:04.4]} 41. Kh3 {[%clk 0:00:02.3]}
41... Qxb4 {[%clk 0:00:04.6]} 42. Qc7+ {[%clk 0:00:02.7]} 42... Qe7 {[%clk
0:00:04.6]} 43. Qc6 {[%clk 0:00:02]} 43... b4 {[%clk 0:00:05.5]} 44. Qb6 {[%clk
0:00:01.5]} 44... e5 {[%clk 0:00:05.4]} 45. Qb5 {[%clk 0:00:01.8]} 45... Qe6+
{[%clk 0:00:05.6]} 46. Kg2 {[%clk 0:00:02.3]} 46... Qe7 {[%clk 0:00:06.2]} 47.
Qb6 {[%clk 0:00:02.4]} 47... g6 {[%clk 0:00:05.4]} 48. Qb5 {[%clk 0:00:02.6]}
48... Kg7 {[%clk 0:00:04.9]} 49. Qb6 {[%clk 0:00:02.9]} 49... Kf7 {[%clk
0:00:04.8]} 50. h4 {[%clk 0:00:03.3]} 50... Kg7 {[%clk 0:00:04.4]} 51. h5 {[%clk
0:00:03.8]} 51... gxh5 {[%clk 0:00:04.4]} 52. Kh3 {[%clk 0:00:03.1]} 52... Kf7
{[%clk 0:00:03.6]} 53. Kh4 {[%clk 0:00:02.6]} 53... f5+ {[%clk 0:00:03.6]} 54.
Kh3 {[%clk 0:00:02.4]} 54... fxe4 {[%clk 0:00:04.3]} 55. fxe4 {[%clk 0:00:03.3]}
55... Qe6+ {[%clk 0:00:04.1]} 0-1

[Event "*** Titled Tuesday Blitz"]
[Site "Chess.com"]
[Date "2020.11.03"]
[Round "5"]
[White "Harsha_Bharathakoti"]
[Black "AldokhinIvan"]
[Result "1/2-1/2"]
[WhiteElo "2803"]
[BlackElo "2593"]
[TimeControl "180+1"]
[EndTime "11:00:02 PST"]
[Termination "Game drawn by repetition"]

1. c4 {[%clk 0:03:00.9]} 1... Nf6 {[%clk 0:02:58.8]} 2. Nc3 {[%clk 0:03:00.5]}
2... g6 {[%clk 0:02:58]} 3. e4 {[%clk 0:02:59]} 3... d6 {[%clk 0:02:58.2]} 4. d4
{[%clk 0:02:59.5]} 4... Bg7 {[%clk 0:02:58.6]} 5. Be2 {[%clk 0:02:55.1]} 5...
O-O {[%clk 0:02:58.5]} 6. Bg5 {[%clk 0:02:55.6]} 6... Nc6 {[%clk 0:02:58.4]} 7.
Nf3 {[%clk 0:02:55.2]} 7... Re8 {[%clk 0:02:58.1]} 8. d5 {[%clk 0:02:43.9]} 8...
Nb4 {[%clk 0:02:57.6]} 9. O-O {[%clk 0:02:42.3]} 9... h6 {[%clk 0:02:57.2]} 10.
Bh4 {[%clk 0:02:40.8]} 10... e6 {[%clk 0:02:57.2]} 11. Nd2 {[%clk 0:02:31.4]}
11... a5 {[%clk 0:02:52.9]} 12. a3 {[%clk 0:02:21.7]} 12... Na6 {[%clk
0:02:52.6]} 13. Qc2 {[%clk 0:02:22.2]} 13... exd5 {[%clk 0:02:41.7]} 14. cxd5
{[%clk 0:02:10.6]} 14... g5 {[%clk 0:02:41.5]} 15. Bg3 {[%clk 0:02:08.7]} 15...
Nc5 {[%clk 0:02:41.4]} 16. Rfe1 {[%clk 0:01:46.7]} 16... a4 {[%clk 0:02:33.1]}
17. Rad1 {[%clk 0:01:20.7]} 17... Bd7 {[%clk 0:02:30.3]} 18. f3 {[%clk
0:00:41.3]} 18... Nh5 {[%clk 0:02:27.9]} 19. Bf2 {[%clk 0:00:41.7]} 19... Nf4
{[%clk 0:02:25.7]} 20. Bf1 {[%clk 0:00:42.2]} 20... Qf6 {[%clk 0:02:00.4]} 21.
Nc4 {[%clk 0:00:42.4]} 21... Qg6 {[%clk 0:01:51]} 22. Ne3 {[%clk 0:00:40.6]}
22... g4 {[%clk 0:01:32.1]} 23. fxg4 {[%clk 0:00:41.5]} 23... Bxg4 {[%clk
0:01:28]} 24. Nxg4 {[%clk 0:00:42.4]} 24... Qxg4 {[%clk 0:01:26.2]} 25. Kh1
{[%clk 0:00:43]} 25... Be5 {[%clk 0:01:22]} 26. g3 {[%clk 0:00:41.1]} 26... Ng6
{[%clk 0:00:56]} 27. Be2 {[%clk 0:00:27.4]} 27... Qg5 {[%clk 0:00:55.6]} 28. Bf3
{[%clk 0:00:24.3]} 28... Kg7 {[%clk 0:00:54.5]} 29. Be3 {[%clk 0:00:24.5]} 29...
Qe7 {[%clk 0:00:47.2]} 30. Re2 {[%clk 0:00:15.6]} 30... h5 {[%clk 0:00:47.5]}
31. Bxh5 {[%clk 0:00:14]} 31... Rh8 {[%clk 0:00:47]} 32. Bxg6 {[%clk 0:00:13.6]}
32... fxg6 {[%clk 0:00:47.2]} 33. Kg1 {[%clk 0:00:12.9]} 33... Raf8 {[%clk
0:00:35.2]} 34. Rf2 {[%clk 0:00:13]} 34... Rxf2 {[%clk 0:00:31.9]} 35. Qxf2
{[%clk 0:00:13.9]} 35... Rf8 {[%clk 0:00:31.5]} 36. Qe2 {[%clk 0:00:12.9]} 36...
Bxc3 {[%clk 0:00:29.3]} 37. Bxc5 {[%clk 0:00:07.3]} 37... Be5 {[%clk 0:00:18.6]}
38. Be3 {[%clk 0:00:05.2]} 38... Qf6 {[%clk 0:00:18.7]} 39. Bc1 {[%clk
0:00:03.7]} 39... g5 {[%clk 0:00:14.7]} 40. Rf1 {[%clk 0:00:03.1]} 40... Bd4+
{[%clk 0:00:10.3]} 41. Kg2 {[%clk 0:00:03.2]} 41... Qxf1+ {[%clk 0:00:09.8]} 42.
Qxf1 {[%clk 0:00:04.1]} 42... Rxf1 {[%clk 0:00:09.7]} 43. Kxf1 {[%clk 0:00:05]}
43... g4 {[%clk 0:00:10.6]} 44. Kg2 {[%clk 0:00:05.5]} 44... Kg6 {[%clk
0:00:11]} 45. h3 {[%clk 0:00:06.1]} 45... Kh5 {[%clk 0:00:11.1]} 46. Kh2 {[%clk
0:00:05.9]} 46... Be5 {[%clk 0:00:09.3]} 47. Kg2 {[%clk 0:00:04.6]} 47... Bd4
{[%clk 0:00:09]} 48. h4 {[%clk 0:00:04.8]} 48... c5 {[%clk 0:00:06.3]} 49. dxc6
{[%clk 0:00:04.1]} 49... bxc6 {[%clk 0:00:06.4]} 50. Kf1 {[%clk 0:00:05]} 50...
Be5 {[%clk 0:00:05.7]} 51. Kf2 {[%clk 0:00:04.9]} 51... Bd4+ {[%clk 0:00:06.1]}
52. Ke2 {[%clk 0:00:04.9]} 52... Be5 {[%clk 0:00:06.6]} 53. Kf2 {[%clk 0:00:03]}
53... Bd4+ {[%clk 0:00:06.9]} 54. Kg2 {[%clk 0:00:03.7]} 54... Be5 {[%clk
0:00:07.4]} 55. Kh2 {[%clk 0:00:02]} 55... Bd4 {[%clk 0:00:07.6]} 56. Kg2 {[%clk
0:00:02.6]} 56... Be5 {[%clk 0:00:08]} 57. Kf2 {[%clk 0:00:03]} 1/2-1/2

[Event "*** Titled Tuesday Blitz"]
[Site "Chess.com"]
[Date "2020.11.03"]
[Round "5"]
[White "hansen"]
[Black "Promacherr"]
[Result "0-1"]
[WhiteElo "2936"]
[BlackElo "2710"]
[TimeControl "180+1"]
[EndTime "11:00:04 PST"]
[Termination "Promacherr won by resignation"]

1. e4 {[%clk 0:02:59.7]} 1... e6 {[%clk 0:03:00.3]} 2. d4 {[%clk 0:02:54.9]}
2... d5 {[%clk 0:03:00.3]} 3. Nd2 {[%clk 0:02:55.8]} 3... c5 {[%clk 0:02:59.9]}
4. Ngf3 {[%clk 0:02:53.9]} 4... cxd4 {[%clk 0:02:59.9]} 5. exd5 {[%clk
0:02:53.2]} 5... Qxd5 {[%clk 0:03:00.8]} 6. Bc4 {[%clk 0:02:53.8]} 6... Qd6
{[%clk 0:03:00.9]} 7. O-O {[%clk 0:02:54]} 7... Nf6 {[%clk 0:03:01.2]} 8. Nb3
{[%clk 0:02:54.5]} 8... Nc6 {[%clk 0:03:01.6]} 9. Nbxd4 {[%clk 0:02:54.8]} 9...
Nxd4 {[%clk 0:03:02.5]} 10. Qxd4 {[%clk 0:02:55.2]} 10... Qxd4 {[%clk
0:03:01.3]} 11. Nxd4 {[%clk 0:02:56.1]} 11... Bd7 {[%clk 0:03:01.7]} 12. Rd1
{[%clk 0:02:53.7]} 12... Rc8 {[%clk 0:02:52]} 13. b3 {[%clk 0:02:45.6]} 13...
Bb4 {[%clk 0:02:45]} 14. Bb2 {[%clk 0:02:43.7]} 14... O-O {[%clk 0:02:45]} 15.
a4 {[%clk 0:02:34.1]} 15... Rfd8 {[%clk 0:02:38.9]} 16. Nb5 {[%clk 0:02:04.4]}
16... Bc5 {[%clk 0:02:10.7]} 17. Nd6 {[%clk 0:02:01.8]} 17... Rb8 {[%clk
0:02:06]} 18. Be5 {[%clk 0:01:41.1]} 18... Bxf2+ {[%clk 0:01:38.5]} 19. Kxf2
{[%clk 0:01:10.4]} 19... Ng4+ {[%clk 0:01:37.7]} 20. Kg3 {[%clk 0:01:08.8]}
20... Nxe5 {[%clk 0:01:38.6]} 21. Kf4 {[%clk 0:00:57.8]} 21... Nxc4 {[%clk
0:01:34.5]} 22. Nxc4 {[%clk 0:00:56.5]} 22... f6 {[%clk 0:01:28.6]} 23. Rd6
{[%clk 0:00:52.9]} 23... e5+ {[%clk 0:01:27.8]} 24. Ke3 {[%clk 0:00:49.7]} 24...
Bc6 {[%clk 0:01:27.5]} 25. g4 {[%clk 0:00:49.7]} 25... Kf8 {[%clk 0:01:20]} 26.
Rad1 {[%clk 0:00:34.8]} 26... Ke7 {[%clk 0:01:18.9]} 27. h4 {[%clk 0:00:33.1]}
27... h6 {[%clk 0:01:12.5]} 28. h5 {[%clk 0:00:30.1]} 28... Rxd6 {[%clk
0:01:05.5]} 29. Nxd6 {[%clk 0:00:29.9]} 29... Bd7 {[%clk 0:01:04.4]} 30. Nf5+
{[%clk 0:00:17.3]} 30... Bxf5 {[%clk 0:00:54.1]} 31. gxf5 {[%clk 0:00:18.2]}
31... Rd8 {[%clk 0:00:50.9]} 32. Rg1 {[%clk 0:00:18.7]} 32... Kf7 {[%clk
0:00:50.1]} 33. Rg4 {[%clk 0:00:19.3]} 33... Rc8 {[%clk 0:00:47.9]} 34. Kd3
{[%clk 0:00:12.7]} 34... b6 {[%clk 0:00:41]} 35. b4 {[%clk 0:00:09.9]} 35...
Rd8+ {[%clk 0:00:39.3]} 36. Ke3 {[%clk 0:00:09]} 36... Rc8 {[%clk 0:00:39.4]}
37. c4 {[%clk 0:00:08.6]} 37... Rd8 {[%clk 0:00:37.7]} 38. c5 {[%clk 0:00:06.8]}
38... bxc5 {[%clk 0:00:33.1]} 39. bxc5 {[%clk 0:00:07.4]} 39... Rc8 {[%clk
0:00:33.4]} 40. Rc4 {[%clk 0:00:07.2]} 40... Ke7 {[%clk 0:00:33.7]} 41. Ke4
{[%clk 0:00:06.6]} 41... Rd8 {[%clk 0:00:29]} 42. Rb4 {[%clk 0:00:06.6]} 42...
Kd7 {[%clk 0:00:19.9]} 43. Kd5 {[%clk 0:00:03]} 43... Kc7+ {[%clk 0:00:20.3]}
44. Ke6 {[%clk 0:00:03.4]} 44... Rd4 {[%clk 0:00:20.4]} 45. Rb3 {[%clk
0:00:02.3]} 45... Rxa4 {[%clk 0:00:17]} 46. Rg3 {[%clk 0:00:02.8]} 46... Rh4
{[%clk 0:00:14.7]} 47. Rxg7+ {[%clk 0:00:02.7]} 47... Kc6 {[%clk 0:00:15.1]} 48.
Kxf6 {[%clk 0:00:03.1]} 48... Rxh5 {[%clk 0:00:15.7]} 49. Rxa7 {[%clk
0:00:02.8]} 49... e4 {[%clk 0:00:15.3]} 50. Re7 {[%clk 0:00:02]} 50... Rh4
{[%clk 0:00:13.8]} 51. Kg6 {[%clk 0:00:01.8]} 51... Kxc5 {[%clk 0:00:13.9]} 52.
f6 {[%clk 0:00:02.4]} 52... Rf4 {[%clk 0:00:13.8]} 53. f7 {[%clk 0:00:01.7]}
53... Kd4 {[%clk 0:00:14]} 54. Kg7 {[%clk 0:00:02]} 54... h5 {[%clk 0:00:12.5]}
55. f8=Q {[%clk 0:00:02.2]} 55... Rxf8 {[%clk 0:00:12.5]} 56. Kxf8 {[%clk
0:00:03.1]} 56... e3 {[%clk 0:00:13.4]} 57. Kg7 {[%clk 0:00:02.9]} 57... h4
{[%clk 0:00:12.9]} 58. Kf6 {[%clk 0:00:03.1]} 58... h3 {[%clk 0:00:12.2]} 59.
Kf5 {[%clk 0:00:03.3]} 59... h2 {[%clk 0:00:11.5]} 60. Rh7 {[%clk 0:00:03.5]}
60... e2 {[%clk 0:00:11.4]} 61. Rh4+ {[%clk 0:00:03.7]} 61... Kd5 {[%clk
0:00:10.7]} 62. Rxh2 {[%clk 0:00:03.3]} 62... e1=Q {[%clk 0:00:10.8]} 63. Rh5
{[%clk 0:00:03.3]} 63... Qe4+ {[%clk 0:00:10.3]} 64. Kf6+ {[%clk 0:00:03.1]}
64... Kd6 {[%clk 0:00:10]} 65. Rh6 {[%clk 0:00:02.8]} 65... Qf4+ {[%clk
0:00:10.3]} 66. Kg7+ {[%clk 0:00:02.5]} 66... Ke7 {[%clk 0:00:10.6]} 67. Rh5
{[%clk 0:00:01.9]} 67... Qg4+ {[%clk 0:00:10.3]} 68. Kh6 {[%clk 0:00:02]} 68...
Kf7 {[%clk 0:00:09.2]} 0-1